{"text_format":"1","workbook":"xlsx","n_sheets":3,"sheets":["Instruccions","Reformulació Pressupost Ac","Resum Pressupost"],"not_rendered":{"charts":0,"images":1,"macros":1,"external_links":0,"defined_names":7,"comments":1,"pivot_tables":0},"unopened":[],"bounds":{"document_bytes":16777216,"sheet_cells":100000,"rows_first":2000,"rows_last":500,"rows_between":2000,"halvings":0,"cell_chars":16384,"cell_head_chars":4096},"cells_cut":0,"cells_raw":0,"read":"whole","date_system":"1900"}

{"sheet":"Instruccions","index":0,"n_rows":18,"n_cols":10,"rows_kept":18,"cut":false,"hidden":false,"merged":[[16,1,16,17],[1,9,1,11],[2,2,3,17],[4,2,4,17],[6,2,6,17],[8,1,8,17],[9,1,9,17],[10,1,10,17],[12,1,12,17],[14,1,14,17]]}
[]
[null,null,null,null,null,null,null,null,null,"Doc_basic3_pressup_reformulat_Ac INSTRUCCIONS"]
[null,null,"SUBVENCIONS DE L’AJUNTAMENT DE BARCELONA PER L’ENFORTIMENT DE L’ECONOMIA SOCIAL I SOLIDÀRIA I PER LA INTERCOOPERACIÓ EN L’ESTRATÈGIA #ESSBCN2030 - ENFORTIM L’ESS 2025"]
[]
[null,null,"Aspectes rellevants relacionats amb la reformulació"]
[]
[null,null,"INSTRUCCIONS"]
[]
[null,"1. Emplenar només les cel·les en blanc de la pestanya  \"Reformulació Pressupost\" amb les dades econòmiques del projecte:"]
[null,"1.1  Emplenar els quadres DADES BÀSIQUES-PREVISIÓ DE DESPESES DEL PROJECTE SUBVENCIONABLE INICIAL, amb les dades econòmiques de la proposta inicial amb subvenció atorgada."]
[null,"1.2  Emplenar els quadres DADES BÀSIQUES-PREVISIÓ DE DESPESES DEL PROJECTE REFORMULAT, amb les dades econòmiques de la proposta de reformulació."]
[]
[null,"2. Revisar i emplenar només les cel·les en blanc de la pestanya  \"Resum Pressupost\" amb les dades econòmiques del projecte."]
[]
[null,"3. Imprimir els fulls de les 2 pestanyes (Reformulació pressupost i Resum Pressupost). En format pdf."]
[]
[null,"4. Si la sol·licitud es va presentar per via telemàtica, cal que registreu la documentació telemàticament dins la convocatòria específica com annexió de documents addicionals i feu servir el número de tràmit que el sistema de registre us va donar en el moment de la presentació de la sol·licitud de la subvenció."]
[null,"Enllaç per realitzar el tràmit."]

{"sheet":"Reformulació Pressupost Ac","index":1,"n_rows":126,"n_cols":15,"rows_kept":126,"cut":false,"hidden":false,"merged":[[125,0,125,14],[106,0,106,14],[107,0,107,14],[108,0,108,14],[109,0,109,14],[110,0,110,14],[111,0,111,14],[112,0,112,14],[113,0,113,14],[114,0,114,14],[115,0,115,14],[116,0,116,14],[117,0,117,14],[118,0,118,14],[119,0,119,14],[120,0,120,14],[10,0,10,3],[10,6,10,9],[1,1,1,10],[3,0,3,14],[6,1,6,9],[7,1,7,9],[8,1,8,9],[4,0,4,14],[11,1,11,3],[12,1,12,3],[13,1,13,3],[11,7,11,9],[16,12,16,14],[14,1,14,3],[16,0,16,4],[14,7,14,9],[16,6,16,10],[121,0,121,14],[122,0,122,14],[123,0,123,14],[124,0,124,14],[12,7,12,9],[13,7,13,9]]}
[]
[null,"Reformulació pressupost Modalitat Ac"]
[]
["Programa de subvencions de l'Ajuntament de Barcelona per l'enfortiment de l'Economia Social i Solidària i per la intercooperació en l'Estratègia #ESSBCN2030 - ENFORTIM L’ESS 2025"]
["EMPLENAR NOMÉS LES CEL·LES EN BLANC"]
[]
["Nom de la persona jurídica"]
["NIF de la persona jurídica"]
["Nom del projecte subvencionable"]
[]
["DADES BÀSIQUES DEL PROJECTE INICIAL SOL·LICITAT\n(indicar les dades sol·licitades a la proposta inicial)",null,null,null,null,null,"DADES BÀSIQUES PROJECTE REFORMULAT"]
["Import total del projecte subvencionable",null,null,null,null,null,"Import total del projecte REFORMULAT",null,null,null,{"$f":"IF(H12<B12*0.7,\"No es pot reformular més d'un 30%\",\"\")","v":""}]
["Import imputable a la subvenció municipal",null,null,null,null,null,"Import imputable a la subvenció ATORGADA\n(indicar l'import atorgat a la resolució)"]
["Import de l'aportació i/o cofinançament de l'organització",{"$f":"+B12-B13","v":0},null,null,null,null,"Import de l'aportació i/o cofinançament de l'organització",{"$f":"H12-H13","v":0}]
["% de l'import sol·licitat respecte el total del projecte subvencionable (màxim 80%*)",{"$f":"IF(B13>0,B13/B12,\"\")","v":""},null,null,"* La quantia de la subvenció atorgada no superarà el 80% de la despesa total del projecte a subvencionar. ",null,"% de l'import sol·licitat respecte el total del projecte subvencionable (màxim 80%*)\n(ha de ser igual o inferior respecte el % de la sol·licitud inicial)",{"$f":"IF(H13>0,H13/H12,\"\")","v":""},null,null,{"$f":"IF(H15=\"\",\"\",IF(H15>0.8,\"La quantia de la subvenció atorgada no pot superar el 80% de la despesa total del projecte\",IF(H15>B15,\"Ha de ser igual o inferior al % de la proposta inicial\",\"\")))","v":""}]
[]
["PREVISIÓ DE DESPESES DEL PROJECTE SUBVENCIONABLE INICIAL",null,null,null,null,null,"PREVISIÓ DE DESPESES DEL PROJECTE REFORMULAT",null,null,null,null,null,"DIFERÈNCIA REFORMULACIÓ I PROJECTE INICIAL"]
[]
["Partides","Import imputable a la subvenció municipal","% subvenció / total","Import de l'aportació i/o Cofinançament de l'organització","Import total del projecte",null,"Partides","Import imputable a la subvenció municipal","% subvenció / total","Import de l'aportació i/o Cofinançament de l'organització","Import total del projecte",null,"Import imputable a la subvenció municipal","Import de l'aportació i/o Cofinançament de l'organització","Import total del projecte"]
["D1. Nòmines i seguretat social (règim general o socis/es cooperativistes en règim d’autònoms) del personal propi vinculat directament al projecte subvencionable (màxim 25% import subvenció)",{"$f":"SUM(B21:B25)","v":0},{"$f":"IF(B20>0,B20/$B$13,)","v":0},{"$f":"SUM(D21:D25)","v":0},{"$f":"B20+D20","v":0},null,"D1. Nòmines i seguretat social (règim general o socis/es cooperativistes en règim d’autònoms) del personal propi vinculat directament al projecte subvencionable (màxim 25% import subvenció)",{"$f":"SUM(H21:H25)","v":0},{"$f":"IF(H20>0,H20/$H$13,)","v":0},{"$f":"SUM(J21:J25)","v":0},{"$f":"+H20+J20","v":0},null,{"$f":"B20-H20","v":0},{"$f":"D20-J20","v":0},0]
[null,null,null,null,0,null,null,null,null,null,0,null,{"$f":"B21-H21","v":0},0,0]
[null,null,null,null,0,null,null,null,null,null,0,null,{"$f":"B22-H22","v":0},0,0]
[null,null,null,null,0,null,null,null,null,null,0,null,0,0,0]
[null,null,null,null,0,null,null,null,null,null,0,null,0,0,0]
[null,null,null,null,0,null,null,null,null,null,0,null,0,0,0]
["D2. Nòmines i seguretat social d’estudiants en pràctiques (amb un límit del 80% del seu sou brut corresponent al període de l’execució de la subvenció) - excepte si la seguretat social està bonificada",{"$f":"SUM(B27:B31)","v":0},{"$f":"IF(B26>0,B26/$B$13,)","v":0},{"$f":"SUM(D27:D31)","v":0},0,null,"D2. Nòmines i seguretat social d’estudiants en pràctiques (amb un límit del 80% del seu sou brut corresponent al període de l’execució de la subvenció) - excepte si la seguretat social està bonificada",{"$f":"SUM(H27:H31)","v":0},{"$f":"IF(H26>0,H26/$H$13,)","v":0},{"$f":"SUM(J27:J31)","v":0},0,null,{"$f":"B26-H26","v":0},{"$f":"D26-J26","v":0},0]
[null,null,null,null,0,null,null,null,null,null,0,null,{"$f":"B27-H27","v":0},0,0]
[null,null,null,null,0,null,null,null,null,null,0,null,0,0,0]
[null,null,null,null,0,null,null,null,null,null,0,null,0,0,0]
[null,null,null,null,0,null,null,null,null,null,0,null,0,0,0]
[null,null,null,null,0,null,null,null,null,null,0,null,0,0,0]
["TOTAL DE DESPESES DEL PERSONAL ",{"$f":"B20+B26","v":0},{"$f":"IF(B32>0,B32/$B$13,)","v":0},{"$f":"D20+D26","v":0},{"$f":"E20+E26","v":0},null,"TOTAL DE DESPESES DEL PERSONAL ",{"$f":"H20+H26","v":0},{"$f":"IF(H32>0,H32/$H$13,)","v":0},{"$f":"J20+J26","v":0},{"$f":"K20+K26","v":0},null,{"$f":"B32-H32","v":0},{"$f":"D32-J32","v":0},0]
["D3. Treballs realitzats per professionals i empreses externes directament vinculades al projecte (inclou despeses de l'estudiant en pràctiques: taxes i altres despeses relacionades amb el conveni de pràctiques)",{"$f":"SUM(B34:B38)","v":0},{"$f":"IF(B33>0,B33/$B$13,)","v":0},{"$f":"SUM(D34:D38)","v":0},{"$f":"B33+D33","v":0},null,"D3. Treballs realitzats per professionals i empreses externes directament vinculades al projecte (inclou despeses de l'estudiant en pràctiques: taxes i altres despeses relacionades amb el conveni de pràctiques)",{"$f":"SUM(H34:H38)","v":0},{"$f":"IF(H33>0,H33/$H$13,)","v":0},{"$f":"SUM(J34:J38)","v":0},{"$f":"+H33+J33","v":0},null,0,{"$f":"D33-J33","v":0},0]
[null,null,null,null,0,null,null,null,null,null,0,null,0,0,0]
[null,null,null,null,0,null,null,null,null,null,0,null,0,0,0]
[null,null,null,null,0,null,null,null,null,null,0,null,0,0,0]
[null,null,null,null,0,null,null,null,null,null,0,null,0,0,0]
[null,null,null,null,0,null,null,null,null,null,0,null,0,0,0]
["D4. Despeses de matriculació en accions formatives externes amb una durada mínima de 150 hores i/o un cost mínim de 600€ per a cada participant",{"$f":"SUM(B40:B44)","v":0},{"$f":"IF(B39>0,B39/$B$13,)","v":0},{"$f":"SUM(D40:D44)","v":0},{"$f":"B39+D39","v":0},null,"D4. Despeses de matriculació en accions formatives externes amb una durada mínima de 150 hores i/o un cost mínim de 600€ per a cada participant",{"$f":"SUM(H40:H44)","v":0},{"$f":"IF(H39>0,H39/$H$13,)","v":0},{"$f":"SUM(J40:J44)","v":0},{"$f":"+H39+J39","v":0},null,{"$f":"B39-H39","v":0},{"$f":"D39-J39","v":0},{"$f":"E39-K39","v":0}]
[null,null,null,null,0,null,null,null,null,null,0,null,0,0,0]
[null,null,null,null,0,null,null,null,null,null,0,null,0,0,0]
[null,null,null,null,0,null,null,null,null,null,0,null,0,0,0]
[null,null,null,null,0,null,null,null,null,null,0,null,0,0,0]
[null,null,null,null,0,null,null,null,null,null,0,null,0,0,0]
["D5. Quotes d'inscripció, lloguer de sistemes de software i hardware i manteniment",{"$f":"SUM(B46:B50)","v":0},{"$f":"IF(B45>0,B45/$B$13,)","v":0},{"$f":"SUM(D46:D50)","v":0},0,null,"D5. Quotes d'inscripció, lloguer de sistemes de software i hardware i manteniment",{"$f":"SUM(H46:H50)","v":0},{"$f":"IF(H45>0,H45/$H$13,)","v":0},{"$f":"SUM(J46:J50)","v":0},{"$f":"H45+J45","v":0},null,{"$f":"B45-H45","v":0},{"$f":"D45-J45","v":0},0]
[null,null,null,null,0,null,null,null,null,null,0,null,{"$f":"B46-H46","v":0},0,0]
[null,null,null,null,0,null,null,null,null,null,0,null,0,0,0]
[null,null,null,null,0,null,null,null,null,null,0,null,0,0,0]
[null,null,null,null,0,null,null,null,null,null,0,null,0,0,0]
[null,null,null,null,0,null,null,null,null,null,{"$f":"+H50+J50","v":0},null,0,0,0]
["TOTAL D'ALTRES DESPESES DIRECTES ",{"$f":"B33+B39+B45","v":0},{"$f":"IF(B51>0,B51/$B$13,)","v":0},{"$f":"D33+D39+D45","v":0},{"$f":"E33+E39+E45","v":0},null,"TOTAL D'ALTRES DESPESES DIRECTES ",{"$f":"H33+H39+H45","v":0},{"$f":"IF(H51>0,H51/$H$13,)","v":0},{"$f":"J33+J39+J45","v":0},{"$f":"K33+K39+K45","v":0},null,{"$f":"B51-H51","v":0},{"$f":"D51-J51","v":0},0]
["TOTAL DESPESES DIRECTES (aquelles que s’identifiquen directament amb el projecte subvencionable)",{"$f":"SUM(B32,B51)","v":0},{"$f":"IF(B52>0,B52/$B$13,)","v":0},{"$f":"SUM(D32,D51)","v":0},{"$f":"E32+E51","v":0},null,"TOTAL DESPESES DIRECTES (aquelles que s’identifiquen directament amb el projecte subvencionable)",{"$f":"SUM(H32,H51)","v":0},{"$f":"IF(H52>0,H52/$H$13,)","v":0},{"$f":"SUM(J32,J51)","v":0},{"$f":"K32+K51","v":0},null,0,{"$f":"D52-J52","v":0},0]
["I1. Personal de suport al projecte (nòmines i seguretat social) ",{"$f":"SUM(B54:B57)","v":0},null,{"$f":"SUM(D54:D57)","v":0},{"$f":"+B53+D53","v":0},null,"I1. Personal de suport al projecte (nòmines i seguretat social) ",{"$f":"SUM(H54:H57)","v":0},null,{"$f":"SUM(J54:J57)","v":0},{"$f":"+H53+J53","v":0},null,0,{"$f":"D53-J53","v":0},0]
[null,null,null,null,0,null,null,null,null,null,0,null,0,0,0]
[null,null,null,null,0,null,null,null,null,null,0,null,0,0,0]
[null,null,null,null,0,null,null,null,null,null,0,null,0,0,0]
[null,null,null,null,0,null,null,null,null,null,0,null,0,0,0]
["I2. Assegurances",{"$f":"SUM(B59:B62)","v":0},null,{"$f":"SUM(D59:D62)","v":0},0,null,"I2. Assegurances",{"$f":"SUM(H59:H62)","v":0},null,{"$f":"SUM(J59:J62)","v":0},0,null,{"$f":"B58-H58","v":0},{"$f":"D58-J58","v":0},0]
[null,null,null,null,0,null,null,null,null,null,0,null,{"$f":"B59-H59","v":0},0,0]
[null,null,null,null,0,null,null,null,null,null,0,null,0,0,0]
[null,null,null,null,0,null,null,null,null,null,0,null,0,0,0]
[null,null,null,null,0,null,null,null,null,null,0,null,0,0,0]
["I3. Amortització",{"$f":"SUM(B64:B67)","v":0},null,{"$f":"SUM(D64:D67)","v":0},0,null,"I3. Amortització",{"$f":"SUM(H64:H67)","v":0},null,{"$f":"SUM(J64:J67)","v":0},0,null,{"$f":"B63-H63","v":0},{"$f":"D63-J63","v":0},0]
[null,null,null,null,0,null,null,null,null,null,0,null,{"$f":"B64-H64","v":0},0,0]
[null,null,null,null,0,null,null,null,null,null,0,null,0,0,0]
[null,null,null,null,0,null,null,null,null,null,0,null,0,0,0]
[null,null,null,null,0,null,null,null,null,null,0,null,0,0,0]
["I4. Lloguer de béns immobles",{"$f":"SUM(B69:B72)","v":0},null,{"$f":"SUM(D69:D72)","v":0},0,null,"I4. Lloguer de béns immobles",{"$f":"SUM(H69:H72)","v":0},null,{"$f":"SUM(J69:J72)","v":0},0,null,{"$f":"B68-H68","v":0},{"$f":"D68-J68","v":0},0]
[null,null,null,null,0,null,null,null,null,null,0,null,{"$f":"B69-H69","v":0},0,0]
[null,null,null,null,0,null,null,null,null,null,0,null,0,0,0]
[null,null,null,null,0,null,null,null,null,null,0,null,0,0,0]
[null,null,null,null,0,null,null,null,null,null,0,null,0,0,0]
["I5. Adquisició de materials i béns consumibles parcialment imputables al projecte",{"$f":"SUM(B74:B77)","v":0},null,{"$f":"SUM(D74:D77)","v":0},0,null,"I5. Adquisició de materials i béns consumibles parcialment imputables al projecte",{"$f":"SUM(H74:H77)","v":0},null,{"$f":"SUM(J74:J77)","v":0},0,null,{"$f":"B73-H73","v":0},{"$f":"D73-J73","v":0},0]
[null,null,null,null,0,null,null,null,null,null,0,null,{"$f":"B74-H74","v":0},0,0]
[null,null,null,null,0,null,null,null,null,null,0,null,0,0,0]
[null,null,null,null,0,null,null,null,null,null,0,null,0,0,0]
[null,null,null,null,0,null,null,null,null,null,0,null,0,0,0]
["I6. Manteniment d’edificis i/o instal·lacions",{"$f":"SUM(B79:B82)","v":0},null,{"$f":"SUM(D79:D82)","v":0},0,null,"I6. Manteniment d’edificis i/o instal·lacions",{"$f":"SUM(H79:H82)","v":0},null,{"$f":"SUM(J79:J82)","v":0},0,null,{"$f":"B78-H78","v":0},{"$f":"D78-J78","v":0},0]
[null,null,null,null,0,null,null,null,null,null,0,null,{"$f":"B79-H79","v":0},0,0]
[null,null,null,null,0,null,null,null,null,null,0,null,0,0,0]
[null,null,null,null,0,null,null,null,null,null,0,null,0,0,0]
[null,null,null,null,0,null,null,null,null,null,0,null,0,0,0]
["I7. Comunicacions (telèfon, correus, connexió a internet)",{"$f":"SUM(B84:B87)","v":0},null,{"$f":"SUM(D84:D87)","v":0},0,null,"I7. Comunicacions (telèfon, correus, connexió a internet)",{"$f":"SUM(H84:H87)","v":0},null,{"$f":"SUM(J84:J87)","v":0},0,null,{"$f":"B83-H83","v":0},{"$f":"D83-J83","v":0},0]
[null,null,null,null,0,null,null,null,null,null,0,null,{"$f":"B84-H84","v":0},0,0]
[null,null,null,null,0,null,null,null,null,null,0,null,0,0,0]
[null,null,null,null,0,null,null,null,null,null,0,null,0,0,0]
[null,null,null,null,0,null,null,null,null,null,0,null,0,0,0]
["I8. Despeses financeres",{"$f":"SUM(B89:B92)","v":0},null,{"$f":"SUM(D89:D92)","v":0},0,null,"I8. Despeses financeres",{"$f":"SUM(H89:H92)","v":0},null,{"$f":"SUM(J89:J92)","v":0},0,null,{"$f":"B88-H88","v":0},{"$f":"D88-J88","v":0},0]
[null,null,null,null,0,null,null,null,null,null,0,null,{"$f":"B89-H89","v":0},0,0]
[null,null,null,null,0,null,null,null,null,null,0,null,0,0,0]
[null,null,null,null,0,null,null,null,null,null,0,null,0,0,0]
[null,null,null,null,0,null,null,null,null,null,0,null,0,0,0]
["I9. Subministraments",{"$f":"SUM(B94:B97)","v":0},null,{"$f":"SUM(D94:D97)","v":0},0,null,"I9. Subministraments",{"$f":"SUM(H94:H97)","v":0},null,{"$f":"SUM(J94:J97)","v":0},0,null,{"$f":"B93-H93","v":0},{"$f":"D93-J93","v":0},0]
[null,null,null,null,0,null,null,null,null,null,0,null,{"$f":"B94-H94","v":0},0,0]
[null,null,null,null,0,null,null,null,null,null,0,null,0,0,0]
[null,null,null,null,0,null,null,null,null,null,0,null,0,0,0]
[null,null,null,null,0,null,null,null,null,null,0,null,0,0,0]
["I10. Treball realitzat per altres empreses, parcialment imputables al projecte (neteja, seguretat...)",{"$f":"SUM(B99:B102)","v":0},null,{"$f":"SUM(D99:D102)","v":0},0,null,"I10. Treball realitzat per altres empreses, parcialment imputables al projecte (neteja, seguretat...)",{"$f":"SUM(H99:H102)","v":0},null,{"$f":"SUM(J99:J102)","v":0},0,null,{"$f":"B98-H98","v":0},{"$f":"D98-J98","v":0},0]
[null,null,null,null,0,null,null,null,null,null,0,null,{"$f":"B99-H99","v":0},0,0]
[null,null,null,null,0,null,null,null,null,null,0,null,0,0,0]
[null,null,null,null,0,null,null,null,null,null,0,null,0,0,0]
[null,null,null,null,0,null,null,null,null,null,0,null,0,0,0]
["TOTAL DESPESES INDIRECTES (es podran assignar al projecte subvencionable fent sevir un percentatge d’assignació) - Màxim 10% de l’import imputable a la subvenció municipal",{"$f":"SUM(B53,B58,B63,B68,B73,B78,B83,B88,B93,B98)","v":0},{"$f":"IF(B103>0,B103/$B$13,)","v":0},{"$f":"SUM(D53,D58,D63,D68,D73,D78,D83,D88,D93,D98)","v":0},{"$f":"E53+E58+E63+E68+E73+E78+E83+E88+E93+E98","v":0},null,"TOTAL DESPESES INDIRECTES (es podran assignar al projecte subvencionable fent sevir un percentatge d’assignació) - Màxim 10% de l’import imputable a la subvenció municipal",{"$f":"SUM(H53,H58,H63,H68,H73,H78,H83,H88,H93,H98)","v":0},{"$f":"IF(H103>0,H103/$H$13,)","v":0},{"$f":"SUM(J53,J58,J63,J68,J73,J78,J83,J88,J93,J98)","v":0},{"$f":"K53+K58+K63+K68+K73+K78+K83+K88+K93+K98","v":0},{"$f":"+IF(H103>H13*0.1,\"ALERTA: Màxim 10% import imputable a la subvenció municipal\", \" \")","v":" "},{"$f":"B103-H103","v":0},{"$f":"D103-J103","v":0},0]
["TOTAL DE DESPESES PREVISTES",{"$f":"SUM(B52+B103)","v":0},{"$f":"IF(B104>0,B104/$B$13,)","v":0},{"$f":"SUM(D52+D103)","v":0},{"$f":"SUM(E52+E103)","v":0},null,"TOTAL DE DESPESES PREVISTES",{"$f":"SUM(H52+H103)","v":0},{"$f":"IF(H104>0,H104/$H$13,)","v":0},{"$f":"SUM(J52+J103)","v":0},0,null,0,{"$f":"D104-J104","v":0},0]
[null,{"$f":"IF(B104>B13,\"La suma del detall de despeses no pot ser superior a l'import total de subvenció municipal indicat al requadre\",(IF(B104<B13,\"La suma del detall de despeses no pot ser inferior a l'import total de subvenció municipal indicat al requadre\",\"\")))","v":""},null,{"$f":"IF(D104>B14,\"La suma del detall de despeses no pot ser superior a l'import total de l'aportació/confinançament indicat al requadre\",(IF(D104<B14,\"La suma del detall de despeses no pot ser inferior a l'import total de l'aportació/confinançament indicat al requadre\",\"\")))","v":""},{"$f":"IF(E104>B12,\"La suma del detall de despeses no pot ser superior a l'import total del projecte indicat al requadre\",(IF(E104<B12,\"La suma del detall de despeses no pot ser inferior a l'import total del projecte indicat al requadre\",\"\")))","v":""},null,null,{"$f":"IF(H104>H13,\"La suma del detall de despeses no pot ser superior a l'import total de subvenció municipal indicat al requadre\",(IF(H104<H13,\"La suma del detall de despeses no pot ser inferior a l'import total de subvenció municipal indicat al requadre\",\"\")))","v":""},null,{"$f":"IF(J104>H14,\"La suma del detall de despeses no pot ser superior a l'import total de l'aportació/confinançament indicat al requadre\",(IF(J104<H14,\"La suma del detall de despeses no pot ser inferior a l'import total de l'aportació/confinançament indicat al requadre\",\"\")))","v":""},{"$f":"IF(K104>H12,\"La suma del detall de despeses no pot ser superior a l'import total del projecte indicat al requadre\",(IF(K104<H12,\"La suma del detall de despeses no pot ser inferior a l'import total del projecte indicat al requadre\",\"\")))","v":""}]
[]
["Modalitat Ac: Digitalització: Accions vinculades a la implementació de processos de digitalització per l’enfortiment de les empreses i organitzacions de l’ESS, orientades al desenvolupament dels objectius de l’Estratègia #ESSBCN2030 i del PIESS 2024-2027"]
["1. La quantia de la subvenció atorgada no superarà el 80% de la despesa total del projecte a subvencionar. "]
["2. L'import màxim de subvenció per a la modalitat Ac és 9.000€. "]
["3. En el cas que la sol·licitud presentada sobrepassi l’import màxim, es considerarà com a import sol·licitat el màxim de l'establert a la convocatòria."]
["4. Es limita amb un màxim del  25% l’import de la subvenció per a despeses de personal propi que participa de forma directa i degudament al projecte. I un màxim del 80% de l'import subvenció per a nòmines i seguretat social d’estudiants en pràctiques (del seu sou brut corresponent al període de l’execució de la subvenció) - excepte si la seguretat social està bonificada. A la justificació caldrà adjuntar obligatòriament aquest Conveni de Cooperació Educativa amb la universitat respectiva, o bé l’Acord Formatiu de Col·laboració (en el cas de beca) o el Contracte de formació i aprenentatge amb el Centre de Formació Professional corresponent."]
["5. El programa de pràctiques de l’alumne/a ha de ser d’una durada mínima de 400 hores o superior. Caldrà mantenir les hores mínimes proposades a la proposta valorada, no podent disminuir-les un cop concedida la subvenció. No obstant, sí que es podrien incrementar."]
["6. Només pot presentar-se una sol·licitud per un lloc de pràctiques per organització sol·licitant."]
["7. Caldrà remunerar l’alumne/a en pràctiques universitàries (curriculars o extracurriculars) amb un cost brut hora mínim de 6€/hora o superior. No es podrà disminuir el cost brut hora, un cop concedida la subvenció. Sí que serà possible incrementar-lo."]
["8. Caldrà remunerar l’alumne/a segons la modalitat d’FP dual escollida com a mínim d’acord amb la normativa específica que estableix el Departament d’Educació de la Generalitat de Catalunya o superior. "]
["9. No serà subvencionable la despesa de compra de software o hardware o despeses d’inversió, corresponents a partides de l'immobilitzat."]
["10. No es poden imputar en cap cas despeses d’inversió, corresponents a partides de l'immobilitzat, amb els diners de la subvenció atorgada en aquesta convocatòria específica. Sí que es poden imputar a la part  de contribució, sempre que siguin despeses dins el període executiu del projecte subvencionat i acreditables tal i com es descriu a les bases reguladores vigents."]
["11. No és possible subvencionar la creació/actualització de pàgines web, ni la dinamització de xarxes socials, en cap cas."]
["12. En cap cas es consideraran despeses subvencionables:\n> Els impostos indirectes quan siguin susceptibles de recuperació o compensació.\n> Les despeses d'inversió, incloses les adquisicions de béns mobles.\n> Les despeses realitzades amb data anterior a l'inici del projecte i data posterior a la finalització del projecte.\n> Altres despeses que s'indiquin a la convocatòria."]
["13. Són imputables en aquesta modalitat les despeses indirectes, detallades en l’apartat 13.3. de les bases reguladores; amb un màxim del 10% de l'import de la subvenció."]
["14. La retribució de les persones contractades en el marc del projecte subvencionat no pot ser inferior al Salari Mínim Interprofessional (SMI), ni a l'estipulada al corresponent conveni o marc normatiu de referència (punt 7 de les bases 2025: requisits dels projectes). "]
["15. Els materials produïts de difusió, estudis, informes o materials didàctics utilitzats, etc. en el cas de tractar-se de despesa elegible de la subvenció, hauran de tenir llicència Creative Commons -Compartir Igual- (share a like)  i no podrà tenir la condició –Sense Obres Derivades- (no derivate Works)."]
["16. Els projectes subvencionats han de fomentar activitats d'interès públic o social, les quals han de ser gratuïtes per a les persones participants o en cap cas el preu ha de suposar un obstacle per a la seva participació, buscant altres formes d'accés per a persones amb dificultats econòmiques. En el cas que hi hagi algun tipus de lucre, haurà de revertir en les pròpies activitats subvencionades."]
["17. L'Ajuntament de Barcelona i les seves entitats municipals en cap cas subvencionaran el mateix projecte, executat durant el mateix període, per cap altre procediment de concessió que no sigui el regulat per les bases reguladores."]
["18. El/la beneficiari/ària no podrà alterar en cap cas el destí de les subvencions concedides."]
["19. En el cas de presentar tiquets, el seu import no podrà superar el 10% de la subvenció i aniran acompanyats d'una declaració responsable del representant legal de la  persona jurídica o de l'agrupació de persones jurídiques que indicarà en quin concepte s'imputa aquesta despesa."]

{"sheet":"Resum Pressupost","index":2,"n_rows":27,"n_cols":12,"rows_kept":27,"cut":false,"hidden":false,"merged":[[1,2,2,8],[3,0,3,9],[5,0,5,1],[6,0,7,1],[6,2,7,3],[6,4,7,5],[26,7,26,10],[6,7,7,8],[6,9,7,9],[6,10,7,10],[9,7,10,7],[9,8,10,8],[9,9,10,9],[9,10,10,10],[12,7,13,7],[12,8,13,8],[12,9,13,9],[12,10,13,10],[21,7,21,8],[15,0,16,1],[10,4,11,4],[15,4,16,5],[15,2,16,3],[10,0,11,0],[10,1,11,1],[10,2,11,2],[10,3,11,3],[10,5,11,5]]}
[]
[null,null,"Resum pressupost Ac"]
[]
["Subvencions de l'Ajuntament de Barcelona per l'enfortiment de l'Economia Social i Solidària i per la intercooperació en l'Estratègia #ESSBCN2030 - ENFORTIM L’ESS 2025",null,null,null,null,null,null,null,null,null,"MODALITAT Ac"]
[]
["DESPESES PREVISTES",null,"SOL·LICITUD INICIAL","REFORMULACIÓ","SOL·LICITUD INICIAL","REFORMULACIÓ",null,"INGRESSOS PREVISTOS",null,"SOL·LICITUD INICIAL","REFORMULACIÓ"]
["Despeses directes \n(aquelles que s'identifiquen directament amb el projecte)",null,"Cost total",null,"Subvenció",null,null,"Ingressos previstos",null,"Previsió inicial ingrés total","Previsió reformulada ingrés total"]
[]
["Ac","D1. Nòmines i seguretat social (règim general o socis/es cooperativistes en règim d’autònoms) del personal propi vinculat directament al projecte subvencionables (màxim 25% import subvenció)",{"$f":"+'Reformulació Pressupost Ac'!E20","v":0},{"$f":"+'Reformulació Pressupost Ac'!K20","v":0},{"$f":"+'Reformulació Pressupost Ac'!B20","v":0},{"$f":"+'Reformulació Pressupost Ac'!H20","v":0},{"$f":"+IF(D9<0,\"No s'admeten valors negatius\",\"\")","v":""},"A","Subvenció municipal (import sol·licitat a la instància/atorgat)",{"$f":"'Reformulació Pressupost Ac'!B13","v":0},{"$f":"'Reformulació Pressupost Ac'!H13","v":0}]
[null,"D2. Nòmines i seguretat social d’estudiants en pràctiques (amb un límit del 80% del seu sou brut corresponent al període de l’execució de la subvenció) - excepte si la seguretat social està bonificada",{"$f":"+'Reformulació Pressupost Ac'!E26","v":0},{"$f":"+'Reformulació Pressupost Ac'!K26","v":0},{"$f":"+'Reformulació Pressupost Ac'!B26","v":0},{"$f":"+'Reformulació Pressupost Ac'!H26","v":0},null,"B","Subvencions d'altres administracions"]
[null,"D3. Treballs realitzats per professionals i empreses externes directament vinculades al projecte (inclou despeses de l'estudiant en pràctiques: taxes i altres despeses relacionades amb el conveni de pràctiques)",{"$f":"+'Reformulació Pressupost Ac'!E33","v":0},{"$f":"+'Reformulació Pressupost Ac'!K33","v":0},{"$f":"+'Reformulació Pressupost Ac'!B33","v":0},{"$f":"+'Reformulació Pressupost Ac'!H33","v":0},null,null,null,null,null,{"$f":"+IF(K11<0,\"No s'admeten valors negatius\",\"\")","v":""}]
[null,null,null,null,null,null,{"$f":"+IF(D11<0,\"No s'admeten valors negatius\",\"\")","v":""},"C","Subvencions d'ens privats",null,null,""]
[null,"D4. Despeses de matriculació en accions formatives externes amb una durada mínima de 150 hores i/o un cost mínim de 600€ per a cada participant",{"$f":"+'Reformulació Pressupost Ac'!E39","v":0},{"$f":"+'Reformulació Pressupost Ac'!K39","v":0},{"$f":"+'Reformulació Pressupost Ac'!B39","v":0},{"$f":"+'Reformulació Pressupost Ac'!H39","v":0},null,"D.","Recursos propis de l'organització aplicats al projecte"]
[null,"D5. Quotes d'inscripció, lloguer de sistemes de software i hardware i manteniment",{"$f":"+'Reformulació Pressupost Ac'!E45","v":0},{"$f":"+'Reformulació Pressupost Ac'!K45","v":0},{"$f":"+'Reformulació Pressupost Ac'!B45","v":0},{"$f":"+'Reformulació Pressupost Ac'!H45","v":0},{"$f":"+IF(D12<0,\"No s'admeten valors negatius\",\"\")","v":""}]
[null,"Total Despeses Directes   ",{"$f":"SUM(C9:C14)","v":0},{"$f":"SUM(D9:D14)","v":0},{"$f":"SUM(E9:E14)","v":0},{"$f":"SUM(F9:F14)","v":0},{"$f":"+IF(D15<0,\"No s'admeten valors negatius\",\"\")","v":""},"E.","Taquillatge"]
["Despeses indirectes (màxim 10% subvenció)",null,"Indirectes inicial total",null,"Indirectes inicial subvenció",null,null,"F","Quotes d'inscripció"]
[null,null,null,null,null,null,null,"G","Venda de Productes"]
[null,"Total Despeses Indirectes   ",{"$f":"'Reformulació Pressupost Ac'!E103","v":0},{"$f":"'Reformulació Pressupost Ac'!K103","v":0},{"$f":"'Reformulació Pressupost Ac'!B103","v":0},{"$f":"'Reformulació Pressupost Ac'!H103","v":0},null,"H","Publicitat i/o Esponsorització"]
[null,"Total Despeses ",{"$f":"+C15+C18","v":0},0,{"$f":"+E15+E18","v":0},0,null,"I","Altres ingressos"]
[null,null,null,null,null,null,null,null,"Total Ingressos",{"$f":"SUM(J9:J19)","v":0},0]
[]
[null,null,null,null,null,null,null,"Ingressos menys despeses ",null,{"$f":"+J20-C19","v":0},{"$f":"+K20-D19","v":0}]
[]
[null,null,null,null,null,null,null,null,null,"% subvencionat inicialment",{"$f":"IF(J9>0,J9/C19,\"\")","v":""}]
[]
[null,null,null,null,null,null,null,null,null,"% subvencionat després de reformular",{"$f":"IF(K9>9,K9/D19,\"\")","v":""},"*"]
[null,null,null,null,null,null,null,"*Aquest percentatge ha de ser igual o menor al percentatge subvencionat inicialment."]